fUST/lending_fUST_20260116
["ID","MTS","AMOUNT","RATE_DAILY","PERIOD"]
[402168005,1768559769578,-189.47958343,9.267e-05,2]
[402168006,1768559778958,-411.14029438,9.267e-05,2]
[402168007,1768559782272,-268.56228605,9.267e-05,2]
[402168008,1768559834396,181.87,6.022e-05,2]
[402168009,1768559834801,363.75,6.569e-05,2]
[402168010,1768559835191,545.62,7.116e-05,2]
[402168011,1768559835591,727.49,7.664e-05,2]
[402168012,1768559835982,909.37,8.211e-05,2]
[402168013,1768559836382,1091.24,8.759e-05,2]
[402168014,1768559860927,-223.13771395,9.213e-05,2]
[402168015,1768559864294,-791.93746355,9.213e-05,2]
[402168016,1768559868809,-162.31579678,9.213e-05,2]
[402168017,1768559871039,-300.0,9.213e-05,2]
[402168018,1768559873183,-203.64178857,9.121e-05,2]
[402168019,1768559877982,-156.33034166,9.121e-05,2]
[402168020,1768559880690,-224.26,9.121e-05,2]
[402168021,1768559882811,-208.23196804,9.121e-05,2]
[402168022,1768559888263,-545.5228273,9.121e-05,2]
[402168023,1768559889768,-368.9676843,9.121e-05,2]
[402168024,1768559891931,-157.24416577,9.121e-05,2]
[402168025,1768559895121,-286.26583423,9.121e-05,2]
[402168026,1768559897133,-178.51215727,9.121e-05,2]
[402168027,1768559899285,-229.02784273,9.121e-05,2]
[402168028,1768559901420,-200.99521863,9.121e-05,2]
[402168029,1768559904115,-376.3681216,9.121e-05,2]
[402168030,1768559906926,-224.35942418,9.121e-05,2]
[402168031,1768559909638,-151.80242089,9.121e-05,2]
[402168032,1768559911698,298.99,6.542e-05,2]
[402168033,1768559912050,448.48,7.087e-05,2]
[402168034,1768559912280,-296.91157198,9.121e-05,2]
[402168035,1768559912467,597.97,7.632e-05,2]
[402168036,1768559912846,747.46,8.177e-05,2]
[402168037,1768559913309,896.96,8.722e-05,2]
[402168038,1768559916173,-310.26600713,9.121e-05,2]
[402168039,1768559918761,-469.910025,9.121e-05,2]
[402168040,1768559989545,294.36,6.525e-05,2]
[402168041,1768559989589,441.54,7.069e-05,2]
[402168042,1768559989894,588.72,7.613e-05,2]
[402168043,1768559990290,735.9,8.156e-05,2]
[402168044,1768559990717,883.08,8.7e-05,2]
[402168045,1768560005391,224.49,5e-05,2]
[402168046,1768560005933,224.49,5e-05,2]
[402168047,1768560006476,224.49,5e-05,2]
[402168048,1768560007032,224.49,5e-05,2]
[402168049,1768560007057,-42.65482047,9.121e-05,2]
[402168050,1768560007079,-144.16515453,9.121e-05,2]
[402168051,1768560007722,224.49,5e-05,2]
[402168052,1768560008407,224.49,5.1e-05,2]
[402168053,1768560008567,-208.01666853,9.121e-05,2]
[402168054,1768560009093,224.49,5.1e-05,2]
[402168055,1768560009641,224.49,5.1e-05,2]
[402168056,1768560010188,224.49,5.1e-05,2]
[402168057,1768560010848,224.49,5.1e-05,2]
[402168058,1768560011381,224.49,5.1e-05,2]
[402168059,1768560012661,224.49,5.1e-05,2]
[402168060,1768560013326,224.49,5.1e-05,2]
[402168061,1768560013980,224.49,5.1e-05,2]
[402168062,1768560014561,224.49,5.1e-05,2]
[402168063,1768560015097,224.49,5.2e-05,2]
[402168064,1768560015667,224.49,5.2e-05,2]
[402168065,1768560016398,224.49,5.2e-05,2]
[402168066,1768560017126,25.73,5.2e-05,2]
[402168067,1768560017150,198.76,5.2e-05,2]
[402168068,1768560017917,224.49,5.2e-05,2]
[402168069,1768560018188,224.49,5.2e-05,2]
[402168070,1768560018707,224.49,5.2e-05,2]
[402168071,1768560019359,224.49,5.2e-05,2]
[402168072,1768560020509,224.49,5.2e-05,2]
[402168073,1768560021153,224.49,5.2e-05,2]
[402168074,1768560021727,224.49,5.3e-05,2]
[402168075,1768560022272,224.49,5.3e-05,2]
[402168076,1768560022931,224.49,5.3e-05,2]
[402168077,1768560023486,224.49,5.3e-05,2]
[402168078,1768560024024,224.49,5.3e-05,2]
[402168079,1768560024551,224.49,5.3e-05,2]
[402168080,1768560025207,224.49,5.3e-05,2]
[402168081,1768560025913,224.49,5.3e-05,2]
[402168082,1768560026924,224.49,5.3e-05,2]
[402168083,1768560027470,224.49,5.3e-05,2]
[402168084,1768560028076,224.49,5.4e-05,2]
[402168085,1768560028717,224.49,5.4e-05,2]
[402168086,1768560029269,224.49,5.4e-05,2]
[402168087,1768560029702,224.49,5.4e-05,2]
[402168088,1768560030248,224.49,5.4e-05,2]
[402168089,1768560030905,224.49,5.4e-05,2]
[402168090,1768560031429,224.49,5.4e-05,2]
[402168091,1768560031977,224.49,5.4e-05,2]
[402168092,1768560032517,224.49,5.4e-05,2]
[402168093,1768560033189,224.49,5.4e-05,2]
[402168094,1768560033714,224.49,5.5e-05,2]
[402168095,1768560034379,224.49,5.5e-05,2]
[402168096,1768560034901,224.49,5.5e-05,2]
[402168097,1768560035553,224.49,5.5e-05,2]
[402168098,1768560036130,224.49,5.5e-05,2]
[402168099,1768560055311,-369.45333147,9.03e-05,2]
[402168100,1768560058464,-165.27917162,9.03e-05,2]
[402168101,1768560061886,-343.64082838,9.03e-05,2]
[402168102,1768560065023,-289.0058664,9.03e-05,2]
[402168103,1768560068481,188.42,5.926e-05,2]
[402168104,1768560068868,376.83,6.465e-05,2]
[402168105,1768560069099,-156.52863723,9.03e-05,2]
[402168106,1768560069295,565.25,7.003e-05,2]
[402168107,1768560069691,753.67,7.542e-05,2]
[402168108,1768560070126,942.08,8.081e-05,2]
[402168109,1768560070612,15.81,8.62e-05,2]
[402168110,1768560070639,1114.69,8.62e-05,2]
[402168111,1768560073778,-165.18982704,9.03e-05,2]
[402168112,1768560077698,-163.15566933,9.03e-05,2]
[402168113,1768560079838,-430.24,9.03e-05,2]
[402168114,1768560097284,-1000.0,9.03e-05,2]
[402168115,1768560098302,-440.11569425,9.03e-05,2]
[402168116,1768560098324,-195.81817694,9.121e-05,2]
[402168117,1768560098353,-364.06612881,9.158e-05,2]
[402168118,1768560098852,-954.85387119,9.158e-05,2]
[402168119,1768560098876,-45.14612881,9.167e-05,2]
[402168120,1768560099251,-134.85490886,9.167e-05,2]
[402168121,1768560099272,-243.43,9.6e-05,2]
[402168122,1768560099299,-621.71509114,9.697e-05,2]
[402168123,1768560099569,-885.61490886,9.697e-05,2]
[402168124,1768560145920,170.53,5.951e-05,2]
[402168125,1768560157829,-341.06,6.492e-05,2]
[402168126,1768560157850,-511.59,7.033e-05,2]
[402168127,1768560157871,-147.35,7.574e-05,2]
[402168128,1768560160317,-230.94516687,7.574e-05,2]
[402168129,1768560161617,-303.82483313,7.574e-05,2]
[402168130,1768560161638,-696.17516687,8.115e-05,2]
[402168131,1768560161986,-156.46483313,8.115e-05,2]
[402168132,1768560162010,-843.53516687,8.656e-05,2]
[402168133,1768560162273,-179.63483313,8.656e-05,2]
[402168134,1768560162294,-820.36516687,9.197e-05,2]
[402168135,1768560162670,-373.33483313,9.197e-05,2]
[402168136,1768560162690,-626.66516687,9.738e-05,2]
[402168137,1768560163147,-737.56483313,9.738e-05,2]
[402168143,1768560235261,-184.95,7.514e-05,2]
[402168144,1768560236789,-17.78,7.514e-05,2]
[402168145,1768560236811,-138.85269342,8.141e-05,2]
[402168146,1768560248713,-165.23730658,8.141e-05,2]
[402168147,1768560248735,-405.46,8.767e-05,2]
[402168148,1768560248758,-429.30269342,9.393e-05,2]
[402168149,1768560260913,-77.51730658,9.393e-05,2]
[402168150,1768560298994,165.68,5.814e-05,2]
[402168151,1768560302161,-331.36,6.343e-05,2]
[402168152,1768560302185,-497.04,6.871e-05,2]
[402168153,1768560302207,-171.6,7.4e-05,2]
[402168154,1768560305520,-491.12,7.4e-05,2]
[402168155,1768560305543,-508.88,7.928e-05,2]
[402168156,1768560305827,-319.52,7.928e-05,2]
[402168157,1768560305849,-680.48,8.457e-05,2]
[402168158,1768560306123,-313.61,8.457e-05,2]
[402168159,1768560306146,-686.39,8.985e-05,2]
[402168160,1768560306456,-473.38,8.985e-05,2]
[402168161,1768560306483,-526.62,9.514e-05,2]
[402168162,1768560307370,-798.83,9.514e-05,2]
[402168163,1768560374234,-1000.0,9.943e-05,2]
[402168164,1768560375320,-1000.0,9.943e-05,2]
[402168165,1768560376800,-989.52217156,9.943e-05,2]
[402168166,1768560376911,10.47782844,6.392e-05,2]
[402168167,1768560381168,-169.06217156,6.392e-05,2]
[402168168,1768560381192,-269.31,6.925e-05,2]
[402168169,1768560381226,-359.08,7.458e-05,2]
[402168170,1768560381251,-202.54782844,7.991e-05,2]
[402168171,1768560381514,-246.30217156,7.991e-05,2]
[402168172,1768560381536,-538.61,8.523e-05,2]
[402168173,1768560381557,-215.08782844,9.056e-05,2]
[402168174,1768560381838,-413.29217156,9.056e-05,2]
[402168175,1768560381865,-586.70782844,9.589e-05,2]
[402168176,1768560382256,-131.44217156,9.589e-05,2]
[402168204,1768560451215,197.48,6.983e-05,2]
[402168205,1768560451618,263.31,7.521e-05,2]
[402168206,1768560452015,329.14,8.058e-05,2]
[402168207,1768560452438,394.97,8.595e-05,2]
[402168208,1768560524402,155.81,6.896e-05,2]
[402168209,1768560524809,207.75,7.426e-05,2]
[402168210,1768560525202,259.69,7.957e-05,2]
[402168211,1768560525599,311.63,8.487e-05,2]
[402168212,1768560532466,2529.61445,8.78e-05,2]
[402168213,1768560533158,-259.11785736,9.018e-05,2]
[402168215,1768560588104,155.0,1e-08,2]
[402168216,1768560597199,160.16,7.37e-05,2]
[402168217,1768560597633,200.2,7.897e-05,2]
[402168218,1768560598022,240.24,8.423e-05,2]
[402168219,1768560605604,224.49,5e-05,2]
[402168220,1768560606258,224.49,5e-05,2]
[402168221,1768560606605,-280.28,8.95e-05,2]
[402168222,1768560606628,-35.24214264,8.95e-05,2]
[402168223,1768560607146,224.49,5e-05,2]
[402168224,1768560607792,224.49,5e-05,2]
[402168225,1768560608522,224.49,5e-05,2]
[402168226,1768560609361,-332.3,8.95e-05,2]
[402168227,1768560609643,224.49,5.1e-05,2]
[402168228,1768560610315,224.49,5.1e-05,2]
[402168229,1768560610985,224.49,5.1e-05,2]
[402168230,1768560611665,224.49,5.1e-05,2]
[402168231,1768560612229,224.49,5.1e-05,2]
[402168232,1768560612756,224.49,5.1e-05,2]
[402168233,1768560613419,224.49,5.1e-05,2]
[402168234,1768560613948,224.49,5.1e-05,2]
[402168235,1768560614619,224.49,5.1e-05,2]
[402168236,1768560615171,224.49,5.1e-05,2]
[402168237,1768560615750,224.49,5.2e-05,2]
[402168238,1768560616675,224.49,5.2e-05,2]
[402168239,1768560617344,224.49,5.2e-05,2]
[402168240,1768560617895,224.49,5.2e-05,2]
[402168241,1768560618448,224.49,5.2e-05,2]
[402168242,1768560618856,105.21555,5.2e-05,2]
[402168243,1768560618881,119.27445,5.2e-05,2]
[402168244,1768560619409,224.49,5.2e-05,2]
[402168245,1768560620451,224.49,5.2e-05,2]
[402168246,1768560621167,224.49,5.2e-05,2]
[402168247,1768560622110,224.49,5.2e-05,2]
[402168248,1768560622529,224.49,5.3e-05,2]
[402168249,1768560622939,224.49,5.3e-05,2]
[402168250,1768560623524,224.49,5.3e-05,2]
[402168251,1768560624092,224.49,5.3e-05,2]
[402168252,1768560624627,224.49,5.3e-05,2]
[402168253,1768560625288,224.49,5.3e-05,2]
[402168254,1768560625942,224.49,5.3e-05,2]
[402168255,1768560626340,224.49,5.3e-05,2]
[402168256,1768560627014,224.49,5.3e-05,2]
[402168257,1768560627389,224.49,5.3e-05,2]
[402168258,1768560628140,224.49,5.4e-05,2]
[402168259,1768560628362,224.49,5.4e-05,2]
[402168260,1768560629037,224.49,5.4e-05,2]
[402168261,1768560629744,224.49,5.4e-05,2]
[402168262,1768560630219,224.49,5.4e-05,2]
[402168263,1768560630824,224.49,5.4e-05,2]
[402168264,1768560631871,224.49,5.4e-05,2]
[402168292,1768560632213,-177.45785736,8.95e-05,2]
[402168294,1768560632223,-320.31,9.476e-05,2]
[402168296,1768560632232,-937.50446098,9.924e-05,2]
[402168301,1768560632266,-1592.10998902,9.924e-05,2]
[402168303,1768560632276,-360.35,0.00010003,2]
[402168305,1768560632285,-185.76421041,0.00010307,2]
[402168307,1768560632295,-400.39,0.00010529,2]
[402168309,1768560632304,-572.89,0.00010958,2]
[402168311,1768560632314,-572.89,0.00010958,3]
[402168313,1768560632325,-572.89,0.00010958,4]
[402168315,1768560632334,-572.89,0.00010958,5]
[402168317,1768560632346,-1984.39784993,0.00011068,2]
[402168322,1768560632384,224.49,5.4e-05,2]
[402168334,1768560632705,224.49,5.4e-05,2]
[402168335,1768560633269,224.49,5.4e-05,2]
[402168336,1768560633940,224.49,5.5e-05,2]
[402168337,1768560634482,224.49,5.5e-05,2]
[402168338,1768560635171,224.49,5.5e-05,2]
[402168339,1768560635723,224.49,5.5e-05,2]
[402168340,1768560636557,224.49,5.5e-05,2]
[402168360,1768560638313,-545.21660007,0.00011068,2]
[402168361,1768560638324,-300.0,0.00011507,2]
[402168362,1768560638334,-300.0,0.00011507,2]
[402168363,1768560638350,-51.74390383,0.00011507,2]
[402168364,1768560638362,-248.25609617,0.00011507,2]
[402168365,1768560638373,-300.0,0.00011507,2]
[402168366,1768560638383,-572.89,0.00011508,6]
[402168367,1768560638393,-28.85390383,0.00011508,7]
[402168377,1768560640817,-544.03609617,0.00011508,7]
[402168380,1768560640829,-187.39228805,0.00011761,2]
[402168382,1768560640840,-300.0,0.00011775,2]
[402168384,1768560640853,-7815.41486982,0.00011777,2]
[402168386,1768560640865,-572.89,0.00011861,8]
[402168388,1768560640875,-572.89,0.00011861,9]
[402168390,1768560640885,-572.89,0.00011972,10]
[402168392,1768560640895,-2034.12706927,0.00012213,2]
[402168449,1768560641478,-3e-08,0.00012213,2]
[402168465,1768560643977,-495.4873807,0.00012213,2]
[402168466,1768560643987,-125.5126193,0.00012307,2]
[402168474,1768560649432,-93.68914898,0.00012307,2]
[402168475,1768560649441,-572.89,0.00012613,11]
[402168476,1768560649450,-300.0,0.00012638,2]
[402168477,1768560649459,-228.88531141,0.00013206,2]
[402168478,1768560649468,-572.89,0.00013243,12]
[402168479,1768560649478,-445.202766,0.00013293,2]
[402168480,1768560649487,-2150.738,0.00013293,2]
[402168481,1768560649496,-162.380719,0.00013293,2]
[402168482,1768560649506,-168.3888056,0.00013293,2]
[402168483,1768560649516,-174.61919141,0.00013293,2]
[402168484,1768560649529,-181.08010149,0.00013293,2]
[402168485,1768560649539,-187.78006525,0.00013293,2]
[402168486,1768560649548,-194.72792766,0.00013293,2]
[402168487,1768560649559,-201.93286099,0.00013293,2]
[402168488,1768560649568,-209.40437684,0.00013293,2]
[402168489,1768560649577,-217.15233878,0.00013293,2]
[402168490,1768560649587,-225.18697532,0.00013293,2]
[402168491,1768560649597,-233.51889341,0.00013293,2]
[402168492,1768560649606,-242.15909246,0.00013293,2]
[402168493,1768560649615,-251.11897888,0.00013293,2]
[402168494,1768560649625,-260.4103811,0.00013293,2]
[402168495,1768560649635,-270.0455652,0.00013293,2]
[402168496,1768560649644,-280.03725112,0.00013293,2]
[402168497,1768560649653,-290.39862941,0.00013293,2]
[402168498,1768560649663,-301.1433787,0.00013293,2]
[402168499,1768560649672,-10000.0,0.00013293,2]
[402168500,1768560649682,-163.51756001,0.000133,2]
[402168501,1768560649691,-500.0,0.000133,2]
[402168502,1768560649700,-156.21486711,0.000133,2]
[402168503,1768560649710,-550.55043656,0.000133,2]
[402168504,1768560649719,-431.12968337,0.000133,2]
[402168505,1768560649728,-17706.4801317,0.00013301,2]
[402168506,1768560649738,-572.89,0.00013506,13]
[402168507,1768560649747,-572.89,0.00013674,14]
[402168508,1768560649756,-500.0,0.00013698,2]
[402168509,1768560650070,-500.0,0.00013698,2]
[402168510,1768560650101,-500.0,0.00013698,2]
[402168511,1768560650116,-190.50771303,0.00013698,2]
[402168512,1768560650125,-1000.0,0.00013699,2]
[402168513,1768560650135,-572.89,0.00013802,15]
[402168514,1768560650145,-461.67526834,0.00013841,2]
[402168515,1768560650155,-2230.315306,0.00013841,2]
[402168516,1768560650166,-572.89,0.0001408,16]
[402168517,1768560650176,-572.89,0.00014295,17]
[402168518,1768560650187,-252.63932615,0.00014307,2]
[402168519,1768560650196,-478.75725327,0.00014389,2]
[402168520,1768560650207,-2312.83697232,0.00014389,2]
[402168521,1768560650217,-1245.1826708,0.00014439,2]
[402168522,1768560650227,-572.89,0.00014601,18]
[402168523,1768560650237,-496.47127164,0.00014937,2]
[402168524,1768560650246,-1924.87888341,0.00014937,2]
[402168525,1768560650255,-391.44337225,0.00015,2]
[402168526,1768560650267,-572.89,0.00015009,19]
[402168527,1768560650277,-204.9939668,0.00015068,2]
[402168528,1768560650287,-572.89,0.00015176,20]
[402168529,1768560650297,-514.84070869,0.00015485,2]
[402168530,1768560650306,-572.89,0.00015498,21]
[402168531,1768560650317,-572.89,0.00015498,21]
[402168532,1768560650326,-572.89,0.00015498,21]
[402168533,1768560650335,-572.89,0.00015498,21]
[402168534,1768560650344,-573.00047669,0.00015498,21]
[402168535,1768560650354,-408.19840197,0.00015749,30]
[402168536,1768560650364,-784.73175741,0.00015749,30]
[402168537,1768560650373,-152.47875155,0.00015749,30]
[402168538,1768560650383,-664.39535525,0.00015941,2]
[402168539,1768560650392,-533.88981491,0.00016033,2]
[402168540,1768560650401,-286.07688402,0.00016307,2]
[402168541,1768560650411,-3493.7873579,0.00016324,2]
[402168542,1768560650420,-1041.66666667,0.00016489,2]
[402168543,1768560650430,-1406.96988406,0.00016542,2]
[402168544,1768560650440,-553.64373807,0.00016581,2]
[402168545,1768560650449,-312.32812658,0.00016716,2]
[402168546,1768560650458,-163.616,0.00016722,2]
[402168547,1768560650468,-211.13105724,0.00016896,2]
[402168548,1768560650477,-1260.66036712,0.00016986,2]
[402168549,1768560650486,-168.0,0.00017005,2]
[402168550,1768560650496,-168.0,0.00017079,2]
[402168551,1768560650505,-151.23,0.00017079,2]
[402168552,1768560650519,-151.22,0.00017079,2]
[402168553,1768560650529,-168.0,0.00017128,2]
[402168554,1768560650540,-574.12855637,0.00017129,2]
[402168555,1768560650550,-1568.18,0.00017179,2]
[402168556,1768560650559,-168.0,0.00017179,2]
[402168557,1768560650569,-151.0,0.000173,2]
[402168558,1768560650578,-151.0,0.000173,2]
[402168559,1768560650589,-151.0,0.000173,2]
[402168560,1768560650598,-151.0,0.000173,2]
[402168561,1768560650608,-151.0,0.000173,2]
[402168562,1768560650617,-151.0,0.000173,2]
[402168563,1768560650627,-151.0,0.000173,2]
[402168564,1768560650636,-151.0,0.000173,2]
[402168565,1768560650645,-5000.0,0.00017317,2]
[402168566,1768560650655,-408.39533101,0.00017317,2]
[402168567,1768560650664,-253.39989937,0.00017317,2]
[402168568,1768560650673,-3138.5697188,0.00017318,2]
[402168569,1768560650683,-225679.59552504,0.00017318,2]
[402168573,1768560941602,174.49,8.827e-05,2]
[402168574,1768561012900,161.17,8.821e-05,2]
[402168943,1768561843670,-301.03584313,0.00010125,2]
[402168969,1768562215272,-5000.0,9.924e-05,2]
[402168971,1768562744838,10000.01,0.0001,2]
[402168972,1768562744866,12000.0,0.0001,2]
[402168973,1768562748268,-9664.35,0.0001,2]
[402169015,1768563031596,-300.0,9.999e-05,2]
[402169016,1768563031605,-245.53463938,9.999e-05,2]
[402169017,1768563031617,-54.46536062,9.999e-05,2]
[402169018,1768563031626,-300.0,9.999e-05,2]
[402169019,1768563031636,-560.0,9.999e-05,2]
[402169020,1768563031645,-180.17618597,0.0001,2]
[402169021,1768563031655,-37233.14,0.0001,2]
[402169022,1768563031664,-635.60351688,0.000104,2]
[402169023,1768563031673,-180.09,0.00010641,2]
[402169024,1768563031682,-300.0,0.00010999,2]
[402169025,1768563031693,-300.0,0.00010999,2]
[402169026,1768563031702,-300.0,0.00010999,2]
[402169027,1768563031711,-150.83258556,0.00011,2]
[402169028,1768563031720,-240.12,0.0001146,2]
[402169029,1768563031729,-212.60789944,0.00011999,2]
[402169030,1768563031739,-300.15,0.00012278,2]
[402169031,1768563031748,-360.19,0.00013097,2]
[402169032,1768563031757,-185.222293,0.00013699,2]
[402169033,1768563031767,-420.22,0.00013915,2]
[402169034,1768563031775,-245.03961291,0.00014,2]
[402169035,1768563031785,-480.25,0.00014734,2]
[402169036,1768563031794,-333.0,0.0001538,2]
[402169037,1768563032069,-155.0,0.0001538,2]
[402169038,1768563032103,-50000.7267795,0.0001538,2]
[402169039,1768563032114,-216.04065844,0.000154,2]
[402169040,1768563032124,-555.0,0.000154,2]
[402169041,1768563032133,-156.21441213,0.000154,2]
[402169042,1768563032143,-540.28,0.00015553,2]
[402169043,1768563032152,-8540.6837611,0.00015597,2]
[402169044,1768563032162,-166.0,0.000156,2]
[402169045,1768563032172,-151.0,0.000156,2]
[402169046,1768563032182,-308.81720681,0.00015641,2]
[402169047,1768563032191,-162.380719,0.00015641,2]
[402169048,1768563032201,-168.3888056,0.00015641,2]
[402169049,1768563032211,-174.61919141,0.00015641,2]
[402169050,1768563032220,-181.08010149,0.00015641,2]
[402169051,1768563032229,-187.78006525,0.00015641,2]
[402169052,1768563032239,-194.72792766,0.00015641,2]
[402169053,1768563032251,-201.93286099,0.00015641,2]
[402169054,1768563032262,-209.40437684,0.00015641,2]
[402169055,1768563032272,-217.15233878,0.00015641,2]
[402169056,1768563032282,-225.18697532,0.00015641,2]
[402169057,1768563032291,-233.51889341,0.00015641,2]
[402169058,1768563032301,-242.15909246,0.00015641,2]
[402169059,1768563032310,-251.11897888,0.00015641,2]
[402169060,1768563032322,-260.4103811,0.00015641,2]
[402169061,1768563032331,-270.0455652,0.00015641,2]
[402169062,1768563032340,-280.03725112,0.00015641,2]
[402169063,1768563032349,-290.39862941,0.00015641,2]
[402169064,1768563032358,-301.1433787,0.00015641,2]
[402169065,1768563032367,-500.0,0.00015749,30]
[402169066,1768563032377,-166.0,0.000159,2]
[402169067,1768563032387,-277.47132639,0.00016,2]
[402169068,1768563032396,-600.31,0.00016371,2]
[402169069,1768563032405,-715.0,0.00016436,2]
[402169070,1768563032414,-198.478,0.00016436,2]
[402169071,1768563032423,-417.0,0.00016436,2]
[402169072,1768563032432,-1041.66666667,0.00016495,2]
[402169073,1768563032441,-9326.441071,0.00016816,2]
[402169074,1768563032450,-197.1709603,0.00016816,2]
[402169075,1768563032459,-156.21441213,0.00016829,20]
[402169076,1768563032468,-151.91326675,0.00016949,2]
[402169077,1768563032477,-163.616,0.00016987,2]
[402169078,1768563032486,-7065.6178512,0.00017061,2]
[402169079,1768563032495,-504.48406529,0.00017098,5]
[402169080,1768563032504,-2220.6627887,0.00017186,2]
[402169081,1768563032514,-3256.227192,0.00017186,2]
[402169082,1768563032524,-150.19,0.00017418,2]
[402169083,1768563032533,-150.202,0.00017418,2]
[402169084,1768563032542,-150.199,0.00017418,2]
[402169085,1768563032551,-779.0,0.000176,2]
[402169086,1768563032560,-201.61,0.000177,3]
[402169087,1768563032570,-153.0,0.000177,3]
[402169088,1768563032579,-3000.0,0.00017758,7]
[402169089,1768563032588,-166.0,0.000178,4]
[402169090,1768563032598,-166.0,0.000178,3]
[402169091,1768563032607,-309.90303986,0.00018,2]
[402169092,1768563032617,-168.0,0.00018208,2]
[402169093,1768563032626,-156.21441213,0.00018259,38]
[402169094,1768563032636,-311.1324916,0.00018385,2]
[402169095,1768563032646,-168.0,0.00018517,2]
[402169096,1768563032655,-728.0,0.00018596,2]
[402169097,1768563032664,-728.0,0.00018718,2]
[402169098,1768563032673,-160.0,0.0001872,2]
[402169099,1768563032682,-168.0,0.00018745,2]
[402169100,1768563032692,-733.75315564,0.00018778,2]
[402169101,1768563032702,-151.0,0.00018797,2]
[402169102,1768563032711,-3000.0,0.00018854,7]
[402169103,1768563032720,-159.3,0.00018854,3]
[402169104,1768563032729,-477.9,0.00018854,3]
[402169105,1768563032738,-728.0,0.00018858,2]
[402169106,1768563032747,-5000.0,0.00018864,2]
[402169107,1768563032757,-2851.07564295,0.00018865,3]
[402169146,1768563037651,-177.37992956,0.0001564,2]
[402169148,1768563037660,-285.8767317,0.00016438,2]
[402169150,1768563037670,-12405.34435705,0.00018865,3]
[402169152,1768563037679,-4601.81936963,0.00018878,3]
[402169154,1768563037690,-483.65063037,0.00018878,3]
[402169157,1768563037699,-303.10001603,0.000189,2]
[402169159,1768563037708,-728.0,0.00018916,2]
[402169160,1768563037718,-985.2493536,0.00018959,2]
[402169163,1768563037729,-1095.7609362,0.00018959,2]
[402169165,1768563037738,-728.0,0.00019034,2]
[402169167,1768563037747,-166.0,0.00019051,2]
[402169169,1768563037755,-303.10001625,0.00019089,2]
[402169171,1768563037764,-1194.21543349,0.00019165,2]
[402169173,1768563037775,-3119.86902795,0.00019165,2]
[402169333,1768563039925,-339132.64685802,0.00019165,2]
[402169334,1768563039934,-312.48767375,0.00019178,2]
[402169336,1768563039944,-1248.70074429,0.00019178,2]
[402169338,1768563039953,-845.5406,0.00019178,2]
[402169340,1768563039962,-154.46,0.00019178,2]
[402169342,1768563039971,-1268.3108,0.00019178,2]
[402169344,1768563039981,-1268.3108,0.00019178,2]
[402169345,1768563039990,-200.0,0.00019178,2]
[402169347,1768563039999,-485.01,0.00019178,2]
[402169349,1768563040010,-500.0,0.00019178,2]
[402169351,1768563040019,-500.0,0.00019178,2]
[402169353,1768563040029,-500.0,0.00019178,2]
[402169354,1768563040038,-500.0,0.00019178,2]
[402169355,1768563040048,-500.0,0.00019178,2]
[402169357,1768563040058,-500.0,0.00019178,2]
[402169359,1768563040068,-500.0,0.00019178,2]
[402169361,1768563040077,-500.0,0.00019178,2]
[402169363,1768563040087,-500.0,0.00019178,2]
[402169365,1768563040096,-500.0,0.00019178,2]
[402169366,1768563040106,-500.0,0.00019178,2]
[402169368,1768563040115,-500.0,0.00019178,2]
[402169370,1768563040125,-500.0,0.00019178,2]
[402169371,1768563040135,-500.0,0.00019178,2]
[402169373,1768563040144,-512.21968696,0.00019178,2]